[Event "FIN-ch Women 2017"]
[Site "Helsinki"]
[Date "2017.06.14"]
[Round "1"]
[White "Dannenberg, Alia"]
[Black "Nazarova, Anastasia"]
[Result "0-1"]
[ECO "B20"]
[WhiteElo "1984"]
[BlackElo "2038"]
[Annotator "NA"]
[PlyCount "102"]
[EventDate "2017.??.??"]
[EventType "tourn"]
[EventCountry "FIN"]
[SourceTitle "playchess.com"]
[Source "ChessBase"]
[SourceQuality "1"]
[TimeControl "40/5400+30:1800+30"]

{[%evp 10,89,5,0,0,-26,-8,-1,32767,32767,32767,32767,32767,32767,32767,32767,32767,32767,32767,-37,-27,-40,-59,-44,-36,32767,32767,-71,-29,-36,-34,-56,-20,-81,-75,-73,-81,-95,-82,-84,-15,-86,-97,-104,-106,-197,32767,-190,-166,-179,-193,-893,-873,-744,-299,-310,-259,-277,32767,-415,-427,-725,-319,-462,-210,-230,0,0,246,32767,32767,-250,-266,-408,-353,32767,32767,32767,-355,-372,32767,-440]} 1. e4 {[%emt 0:00:00]} c5 {[%emt 0:00:03]} 2. d3 {[%emt 0:00:00]} Nc6 {[%emt 0:00:05]} 3. g3 {[%emt 0:00:00]} g6 {[%emt 0:00:06]} 4. Bg2 {[%emt 0:00:00]} Bg7 {[%emt 0:00:07]} 5. Nf3 {[%emt 0:00:03]} e5 {[%emt 0:02:30]} 6. O-O {[%emt 0:00:24]} Nge7 {[%emt 0:00:09]} 7. Be3 {[%emt 0:02:22]} b6 {[%emt 0:01:03] A04: Unusual lines after 1 Nf3 and King's Indian Attack} (7... d6 8. Qd2 O-O 9. Bh6 f6 10. Bxg7 Kxg7 11. c3 d5 12. exd5 Nxd5 13. Re1 Re8 14. Na3 Nc7 15. Qe3 b6 16. Nd2 Bb7 {½-½ (40) Golubov,S (2484)-Fedorov,A (2565) Voronezh 2016}) 8. Qd2 {[%emt 0:01:13]} O-O {[%emt 0:10:41]} 9. Bh6 {[%emt 0:00:53]} d6 {[%emt 0:07:08]} 10. Bxg7 {[%emt 0:00:17]} Kxg7 {[%emt 0:00:06]} 11. a4 $146 {[%emt 0:01:01]} ({Predecessor:} 11. Nh4 Bd7 12. f4 f6 13. Na3 Qb8 14. Nc4 b5 15. Ne3 {½-½ (51) Gvetadze,S (2311)-Makropoulou,M (2143) Mamaia 2016}) 11... f5 {[%emt 0:03:07]} 12. exf5 {[%emt 0:02:28]} Bxf5 {[%emt 0:00:49]} 13. Nc3 {[%emt 0:01:15]} Qd7 {[%emt 0:04:40]} 14. Nh4 {[%emt 0:19:01]} Bh3 {[%emt 0:19:38]} 15. Bxh3 {[%emt 0:04:53]} Qxh3 {[%emt 0:00:13]} 16. f4 {[%emt 0:00:43]} Qg4 {[%emt 0:27:37]} 17. Qd1 {[%emt 0:21:50]} Qd7 {[%emt 0:01:37]} 18. Ng2 {[%emt 0:02:42]} Nd4 {[%emt 0:01:34]} 19. Ne2 {[%emt 0:04:23]} Ne6 {[%emt 0:01:13]} 20. Qd2 {[%emt 0:03:03]} Nf5 {[%emt 0:03:08]} 21. Ne3 {[%emt 0:06:22]} (21. a5 $11) 21... Nfd4 {[%emt 0:01:07]} 22. Nxd4 {[%emt 0:02:16]} Nxd4 {[%emt 0:00:45]} ({Much worse is} 22... exd4 $6 23. Nc4 $11) 23. Ng2 {[%emt 0:11:04]} Qg4 {[%emt 0:03:18]} 24. Kh1 {[%emt 0:02:04]} Rae8 {[%emt 0:07:27]} (24... exf4 $17 25. Nxf4 Rae8) 25. Rae1 {[%emt 0:02:39]} exf4 {[%emt 0:01:59]} 26. Rxe8 {[%emt 0:05:13]} Rxe8 {[%emt 0:00:05]} 27. Rxf4 {[%emt 0:01:44]} (27. Nxf4 $17 g5 28. Nh3 (28. Nd5 Re2 $17)) 27... Re2 {[%emt 0:02:06]} 28. Qd1 {[%emt 0:01:26] [#]} Qe6 $1 {[%emt 0:01:01]} 29. c3 {[%emt 0:01:01]} Nf5 {[%emt 0:00:24]} 30. b4 $2 {[%emt 0:00:25] [#]} (30. Qf1 Rxb2 31. g4) 30... Nxg3+ $1 {[%emt 0:00:29]} 31. Kg1 {[%emt 0:00:35]} Nf5 {[%emt 0:00:36]} (31... Qa2 $142 {[%csl Ga2][%cal Re2g2]} 32. Ne1 Rxe1+ 33. Qxe1 Ne2+ 34. Kf1 Nxf4 35. Qe7+ Kh6 36. Qh4+ Nh5) 32. Qf1 {[%emt 0:00:45]} Rb2 {[%emt 0:00:50]} 33. Re4 {[%emt 0:00:38]} Qf6 {[%emt 0:00:34]} 34. Qc1 {[%emt 0:01:00]} (34. bxc5 {was the only chance.} bxc5 35. Qe1) 34... Ra2 {[%emt 0:00:22]} 35. bxc5 {[%emt 0:00:42] [#]} (35. Qf4 $142 Qxc3 36. bxc5 Qxc5+ 37. Ne3) 35... bxc5 {[%emt 0:00:25]} (35... Ng3 $142 $1 {[%csl Ga2][%cal Rf6f2][%mdl 512]} 36. Re7+ (36. hxg3 Qf2+) 36... Qxe7 37. hxg3 Qe5) 36. Qb1 {[%emt 0:01:06] [#]} (36. Qe1 $142) 36... Qf7 {[%emt 0:00:21]} (36... Ng3 $142 $1 {[%csl Ga2][%cal Rf6f2][%mdl 512]} 37. Rf4 (37. hxg3 Qf2+) 37... Ne2+ 38. Kh1 Nxf4 39. Qxa2 Nxd3) 37. Nf4 {[%emt 0:01:12] [#]} Rd2 $2 {[%emt 0:00:54]} (37... Nh4 $1 $19 {[%cal Rh4f3]} 38. Qf1 (38. Ne6+ $2 Qxe6 39. Qb7+ Qf7 $19) 38... Kg8) 38. Ne6+ {[%emt 0:00:26]} Kf6 $2 {[%emt 0:00:33]} (38... Kh8 $11 {and Black stays safe.}) 39. Nf4 {[%emt 0:00:58]} Qa2 {[%emt 0:00:34]} 40. Re6+ {[%emt 0:00:00]} Kg5 {[%emt 0:00:23]} 41. Qf1 $2 {[%emt 0:11:45]} (41. Qxa2 {was the only defense.} Rxa2 42. Re4) 41... Qxa4 {[%emt 0:09:46]} 42. Nh3+ {[%emt 0:03:27]} Kh6 {[%emt 0:02:39]} 43. Nf2 {[%emt 0:00:56]} Qf4 {[%emt 0:06:12]} 44. Re4 {[%emt 0:02:00]} Qg5+ {[%emt 0:02:50]} 45. Kh1 $19 {[%emt 0:04:26]} Rc2 {[%emt 0:01:59]} 46. Re1 {[%emt 0:04:07]} Kg7 {[%emt 0:03:11]} 47. Nh3 {[%emt 0:03:58]} Qd2 {[%emt 0:01:43]} 48. Qg1 {[%emt 0:01:48]} Qxd3 {[%emt 0:01:02]} 49. Nf4 {[%emt 0:01:48]} Qf3+ {[%emt 0:00:32]} 50. Ng2 {[%emt 0:00:11]} Nh4 {[%emt 0:02:37]} 51. Re3 {[%emt 0:01:08]} Rxg2 {[%emt 0:01:22]} 0-1

[Event "FIN-ch Women 2017"]
[Site "Helsinki"]
[Date "2017.06.13"]
[Round "1"]
[White "Al Najar, Huda"]
[Black "Al Argha, Fatima"]
[Result "1/2-1/2"]
[ECO "D02"]
[WhiteElo "1747"]
[BlackElo "1334"]
[Annotator "NA"]
[PlyCount "67"]
[EventDate "2017.??.??"]
[EventType "tourn"]
[EventCountry "FIN"]
[SourceTitle "playchess.com"]
[Source "ChessBase"]
[SourceQuality "1"]
[TimeControl "40/5400+30:1800+30"]

1. Nf3 {[%emt 0:00:00]} d5 {[%emt 0:00:25]} 2. d4 {[%emt 0:00:00]} Nc6 {[%emt 0:02:22]} 3. Bf4 {[%emt 0:00:25]} Bf5 {[%emt 0:02:23]} 4. c3 {[%emt 0:02:10]} Nf6 {[%emt 0:00:51]} 5. e3 {[%emt 0:04:07]} e6 {[%emt 0:02:35]} 6. Bb5 {[%emt 0:04:10]} Bd6 {[%emt 0:02:48]} 7. Ne5 {[%emt 0:04:56]} Bxe5 {[%emt 0:00:42]} 8. dxe5 {[%emt 0:01:33]} Nd7 {[%emt 0:01:09]} 9. Nd2 {[%emt 0:09:58]} a6 {[%emt 0:01:27]} 10. Bxc6 {[%emt 0:01:06]} bxc6 {[%emt 0:00:11]} 11. Nf3 {[%emt 0:02:19]} c5 {[%emt 0:03:08]} 12. Bg5 {[%emt 0:07:37]} Qc8 {[%emt 0:05:53]} 13. Nh4 {[%emt 0:02:45]} Bg6 {[%emt 0:03:47]} 14. Nxg6 {[%emt 0:01:29]} hxg6 {[%emt 0:01:19]} 15. Bf4 {[%emt 0:02:45]} c6 {[%emt 0:05:03]} 16. Qg4 {[%emt 0:07:50]} Rb8 {[%emt 0:02:48]} 17. Rb1 {[%emt 0:02:50]} Qc7 {[%emt 0:08:24]} 18. Qg3 {[%emt 0:06:40]} Qa5 {[%emt 0:02:00]} 19. a3 {[%emt 0:02:36]} Rxb2 {[%emt 0:02:51]} 20. Rc1 {[%emt 0:00:42]} Qxa3 {[%emt 0:03:24]} 21. O-O {[%emt 0:00:12]} a5 {[%emt 0:08:45]} 22. Qf3 {[%emt 0:03:47]} Rh5 {[%emt 0:02:14]} 23. Rfd1 {[%emt 0:01:10]} Nxe5 {[%emt 0:02:02]} 24. Bxe5 {[%emt 0:00:09]} Rxe5 {[%emt 0:00:08]} 25. Qg3 {[%emt 0:00:09]} Rf5 {[%emt 0:04:08]} 26. Rf1 {[%emt 0:05:55]} Rbxf2 {[%emt 0:04:26]} 27. Qb8+ {[%emt 0:02:22]} Kd7 {[%emt 0:01:31]} 28. Qb7+ {[%emt 0:00:32]} Kd6 {[%emt 0:00:25]} 29. Qb8+ {[%emt 0:00:07]} Kd7 {[%emt 0:00:13]} 30. Qb7+ {[%emt 0:00:39]} Kd6 {[%emt 0:00:19]} 31. Qb8+ {[%emt 0:05:05]} Kd7 {[%emt 0:00:18]} 32. Rfd1 {[%emt 0:01:25]} Qa2 {[%emt 0:03:27]} 33. Qb7+ {[%emt 0:00:20]} Kd6 {[%emt 0:00:20]} 34. Qb8+ {[%emt 0:00:04] Ke5 [%clk 0:25:08]} 1/2-1/2

[Event "FIN-ch Women 2017"]
[Site "Helsinki"]
[Date "2017.06.14"]
[Round "1"]
[White "Rinne, Heini"]
[Black "Norlamo, Sarabella"]
[Result "1/2-1/2"]
[ECO "A05"]
[WhiteElo "1746"]
[BlackElo "1640"]
[Annotator "NA"]
[PlyCount "40"]
[EventDate "2017.??.??"]
[EventType "tourn"]
[EventCountry "FIN"]
[SourceTitle "playchess.com"]
[Source "ChessBase"]
[SourceQuality "1"]
[TimeControl "40/5400+30:1800+30"]

1. Nf3 {[%emt 0:00:00]} Nf6 {[%emt 0:00:09]} 2. g3 {[%emt 0:00:00]} g6 {[%emt 0:00:08]} 3. b3 {[%emt 0:00:00]} Bg7 {[%emt 0:00:09]} 4. Bb2 {[%emt 0:00:00]} d6 {[%emt 0:03:09]} 5. d4 {[%emt 0:00:55]} Nbd7 {[%emt 0:05:54]} 6. Bg2 {[%emt 0:01:50]} Ne4 {[%emt 0:04:47]} 7. O-O {[%emt 0:20:56]} O-O {[%emt 0:07:31]} 8. c4 {[%emt 0:18:30]} c6 {[%emt 0:19:25]} 9. Qd3 {[%emt 0:17:33]} Ndf6 {[%emt 0:03:05]} 10. Nc3 {[%emt 0:08:03]} Bf5 {[%emt 0:03:42]} 11. Nh4 {[%emt 0:03:00]} Nxf2 {[%emt 0:07:03]} 12. Qf3 {[%emt 0:10:01]} Nh3+ {[%emt 0:02:30]} 13. Kh1 {[%emt 0:00:46]} Bg4 {[%emt 0:03:06]} 14. Qd3 {[%emt 0:08:45]} Ng5 {[%emt 0:03:44]} 15. Bc1 {[%emt 0:02:25]} Nh3 {[%emt 0:05:44]} 16. e4 {[%emt 0:02:20]} h6 {[%emt 0:05:38]} 17. Be3 {[%emt 0:01:27]} Qd7 {[%emt 0:04:02]} 18. Qd2 {[%emt 0:00:27]} Kh7 {[%emt 0:00:57]} 19. Rae1 {[%emt 0:01:01]} Rad8 {[%emt 0:01:37]} 20. Qc1 {[%emt 0:00:07]} Qc8 {[%emt 0:00:49]} 1/2-1/2

[Event "FIN-ch Women 2017"]
[Site "Helsinki"]
[Date "2017.06.14"]
[Round "4"]
[White "Nazarova, Anastasia"]
[Black "Al Najar, Huda"]
[Result "1/2-1/2"]
[ECO "C77"]
[WhiteElo "2038"]
[BlackElo "1747"]
[Annotator "NA"]
[PlyCount "146"]
[EventDate "2017.??.??"]
[EventType "tourn"]
[EventCountry "FIN"]
[SourceTitle "playchess.com"]
[Source "ChessBase"]
[SourceQuality "1"]
[TimeControl "40/5400+30:1800+30"]

{[%evp 9,137,18,28,22,18,12,10,10,9,0,17,17,48,0,31,49,57,20,22,11,16,-13,0,-8,0,4,0,-6,0,0,-11,0,0,-12,-2,-34,3,7,0,32767,32767,32767,32767,32767,32767,-15,-4,32767,-31,32767,-225,32767,32767,-123,-142,32767,-162,32767,32767,32767,32767,32767,32767,32767,0,0,0,0,32767,0,0,32767,32767,0,32767,32767,32767,32767,32767,32767,32767,32767,32767,32767,0,32767,0,32767,32767,0,0,32767,0,0,0,32767,0,0,0,32767,32767,32767,32767,32767,32767,32767,0,0,0,32767,0,32767,0,0,0,0,0,0,0,32767,0,0,0,0,32767,32767,0,0,0,0]} 1. e4 {[%emt 0:00:00]} e5 {[%emt 0:00:03]} 2. Nf3 {[%emt 0:00:00]} Nc6 {[%emt 0:00:01]} 3. Bb5 {[%emt 0:00:00]} a6 {[%emt 0:00:01]} 4. Ba4 {[%emt 0:00:00]} Nf6 {[%emt 0:00:02]} 5. d3 {[%emt 0:00:00]} b5 {[%emt 0:00:11]} 6. Bb3 {[%emt 0:00:01]} Be7 {[%emt 0:00:18]} 7. O-O {[%emt 0:00:41]} (7. a4 $5 {[%cal Ra4b5]} b4 8. O-O $11) 7... d6 {[%emt 0:00:03]} 8. a3 {[%emt 0:00:46]} (8. a4 $5 {[%cal Ra4b5]}) 8... O-O {[%emt 0:00:54]} 9. Nc3 {[%emt 0:00:41]} Be6 {[%emt 0:05:40] C77: Ruy Lopez: 3...a6 4 Ba4 Nf6, unusual lines} (9... Nb8 10. Ne2 Nbd7 11. c3 Bb7 12. Ng3 c5 13. Re1 Rc8 14. Nf5 c4 15. dxc4 Bxe4 16. Nxe7+ Qxe7 17. cxb5 axb5 {1-0 (42) Kramnik,V (2811)-Harikrishna,P (2755) Shamkir 2017}) 10. Nd5 {[%emt 0:03:32]} Na5 {[%emt 0:07:38] LiveBook: 30 Games} 11. Ba2 {[%emt 0:01:42]} c6 {[%emt 0:01:43]} 12. Nxe7+ {[%emt 0:05:10]} Qxe7 {[%emt 0:00:02]} 13. b4 $146 {[%emt 0:00:30]} ({Predecessor:} 13. Bb1 h6 14. h3 c5 15. Bd2 Nc6 16. c3 Rad8 17. Re1 {0-1 (33) Rodi,L (2364)-Sztokbant,B (2280) Sao Paulo 2015}) 13... Bxa2 {[%emt 0:01:51]} 14. Rxa2 {[%emt 0:00:24]} Nb7 {[%emt 0:00:08]} 15. Re1 {[%emt 0:01:54]} a5 {[%emt 0:00:23]} 16. Rb2 {[%emt 0:03:09]} axb4 {[%emt 0:02:17]} 17. axb4 {[%emt 0:00:06]} Ra1 {[%emt 0:00:52]} 18. Qe2 {[%emt 0:03:10]} Nd8 {[%emt 0:09:01]} 19. c3 {[%emt 0:02:40]} Ne6 {[%emt 0:12:08]} 20. Ra2 {[%emt 0:04:26]} Ra8 {[%emt 0:03:42]} 21. Rxa8+ {[%emt 0:00:55]} Rxa8 {[%emt 0:00:02]} 22. d4 {[%emt 0:15:04]} Nc7 {[%emt 0:12:53]} 23. Qc2 {[%emt 0:07:12]} Qe6 {[%emt 0:07:52]} 24. dxe5 {[%emt 0:05:13]} dxe5 {[%emt 0:00:03]} 25. Be3 {[%emt 0:03:38]} h6 {[%emt 0:00:44]} 26. h3 {[%emt 0:01:32]} Nce8 {[%emt 0:05:13]} 27. Nd2 {[%emt 0:12:40]} Nd6 {[%emt 0:08:38]} 28. f3 {[%emt 0:07:16]} Nc4 {[%emt 0:00:53]} 29. Qd3 {[%emt 0:06:10]} Nxe3 {[%emt 0:04:54]} 30. Qxe3 {[%emt 0:00:31]} Ra2 {[%emt 0:00:17]} 31. Re2 {[%emt 0:06:40]} Nh5 {[%emt 0:01:34]} 32. Kh2 {[%emt 0:12:12]} Nf4 {[%emt 0:00:22]} 33. Rf2 {[%emt 0:00:12]} Rc2 {[%emt 0:09:14]} 34. Nf1 {[%emt 0:02:46]} Qb3 {[%emt 0:02:12]} 35. Rxc2 {[%emt 0:01:21]} Qxc2 {[%emt 0:00:02]} 36. Qd2 {[%emt 0:00:09]} Qb3 {[%emt 0:01:57]} 37. g3 {[%emt 0:00:28]} Qb1 {[%emt 0:01:08]} 38. Ne3 {[%emt 0:01:00]} Qd3 {[%emt 0:02:04]} 39. Qxd3 {[%emt 0:00:49]} Nxd3 {[%emt 0:00:02]} 40. Kg1 {[%emt 0:00:00]} Nb2 {[%emt 0:00:02]} 41. Kf2 {[%emt 0:04:42]} Nc4 {[%emt 0:00:56]} 42. Nf5 {[%emt 0:07:28]} Kf8 {[%emt 0:01:36]} 43. Ke2 {[%emt 0:00:51]} h5 {[%emt 0:00:19]} 44. Nh4 {[%emt 0:00:39]} g6 {[%emt 0:00:47]} 45. Ng2 {[%emt 0:00:07]} Ke7 {[%emt 0:01:09]} 46. Ne1 {[%emt 0:01:42]} f5 {[%emt 0:03:04]} 47. exf5 {[%emt 0:01:51]} gxf5 {[%emt 0:00:02]} 48. Nd3 {[%emt 0:00:34]} Kd6 {[%emt 0:03:45]} 49. Ne1 {[%emt 0:04:06]} Kd5 {[%emt 0:01:39]} 50. Nc2 {[%emt 0:00:17]} Nd6 {[%emt 0:03:58]} 51. Ne3+ {[%emt 0:00:10]} Ke6 {[%emt 0:00:31]} 52. Kd3 {[%emt 0:02:27]} f4 {[%emt 0:07:24]} 53. gxf4 {[%emt 0:00:52]} exf4 {[%emt 0:00:03]} 54. Nc2 {[%emt 0:01:27]} Kd5 {[%emt 0:02:43]} 55. Nd4 {[%emt 0:02:57]} Nc4 {[%emt 0:01:46]} 56. Ne2 {[%emt 0:01:04]} Ne5+ {[%emt 0:02:27]} 57. Kc2 {[%emt 0:00:09]} Ng6 {[%emt 0:00:45]} 58. Kd3 {[%emt 0:02:32]} h4 {[%emt 0:01:11]} 59. Kd2 {[%emt 0:01:27]} Kc4 {[%emt 0:02:46]} 60. Kc2 {[%emt 0:00:06]} c5 {[%emt 0:01:48]} 61. bxc5 {[%emt 0:00:43]} Kxc5 {[%emt 0:00:02]} 62. Kd3 {[%emt 0:02:05]} Kd5 {[%emt 0:02:32]} 63. Kc2 {[%emt 0:00:47]} Kc4 {[%emt 0:00:35]} 64. Kd2 {[%emt 0:00:42]} Ne5 {[%emt 0:02:06]} 65. Nxf4 {[%emt 0:00:14]} Nxf3+ {[%emt 0:00:01]} 66. Kc2 {[%emt 0:00:15]} Ng1 {[%emt 0:00:54]} 67. Ng2 {[%emt 0:00:48]} Nxh3 {[%emt 0:00:48]} 68. Nxh4 {[%emt 0:00:05]} Nf4 {[%emt 0:00:13]} 69. Nf5 $11 {[%emt 0:00:55]} Nd5 {[%emt 0:00:12]} 70. Nd6+ {[%emt 0:00:12]} Kc5 {[%emt 0:00:19]} 71. Ne4+ {[%emt 0:00:18]} Kc6 {[%emt 0:00:14]} 72. Kb3 {[%emt 0:00:15]} Nb6 {[%emt 0:00:23]} 73. Nd2 {[%emt 0:00:33]} Nd5 {[%emt 0:00:10]} 1/2-1/2

[Event "FIN-ch Women 2017"]
[Site "Helsinki"]
[Date "2017.06.14"]
[Round "4"]
[White "Rinne, Heini"]
[Black "Dannenberg, Alia"]
[Result "0-1"]
[ECO "A42"]
[WhiteElo "1746"]
[BlackElo "1984"]
[Annotator "NA"]
[PlyCount "64"]
[EventDate "2017.??.??"]
[EventType "tourn"]
[EventCountry "FIN"]
[SourceTitle "playchess.com"]
[Source "ChessBase"]
[SourceQuality "1"]
[TimeControl "40/5400+30:1800+30"]

{[%evp 8,62,46,39,31,20,10,21,64,43,68,82,67,68,76,73,62,44,40,31,46,42,71,89,65,81,81,74,73,79,86,32767,32767,32767,118,111,160,129,156,32767,32767,32767,32767,32767,-269,32767,32767,32767,-225,32767,32767,32767,32767,32767,-499,32767,-182]} 1. d4 {[%emt 0:00:00]} g6 {[%emt 0:00:01]} 2. c4 {[%emt 0:03:58]} Bg7 {[%emt 0:00:05]} 3. e4 {[%emt 0:02:52]} d6 {[%emt 0:00:16]} 4. Nc3 {[%emt 0:06:55]} e5 {[%emt 0:00:47]} 5. dxe5 {[%emt 0:03:32]} Bxe5 {[%emt 0:00:03] LiveBook: 19 Games} 6. Nge2 {[%emt 0:05:13] A42: Modern Defence: Averbakh Variation} (6. Nf3 Bg7 7. Bg5 Nf6 8. Bd3 h6 9. Bd2 Bg4 10. h3 Bxf3 11. Qxf3 Nc6 12. O-O O-O 13. Rfe1 Ne5 {1-0 (30) Karpov,A (2619)-Mamedyarov,S (2719) Moscow 2009}) 6... Nc6 {[%emt 0:01:50]} 7. Nd5 $146 {[%emt 0:08:06]} ({Predecessor:} 7. Be3 Nge7 8. Bh6 f5 9. Qd2 Be6 10. Nf4 Qd7 11. Nfd5 O-O-O 12. f4 Bxc3 13. Qxc3 Bxd5 14. exd5 {1-0 (27) Cerveny,M (2334)-Petenyi,T (2469) Litomysl 2013}) 7... Bg7 {[%emt 0:04:24]} 8. Nec3 {[%emt 0:00:57]} Nf6 {[%emt 0:10:17]} 9. Bg5 {[%emt 0:07:27]} h6 {[%emt 0:06:53]} 10. Bxf6 {[%emt 0:00:22]} Bxf6 {[%emt 0:00:02]} 11. Nb5 {[%emt 0:05:40]} O-O {[%emt 0:06:20]} 12. Qd2 {[%emt 0:04:20]} ({Of course not} 12. Ndxc7 a6 $15) 12... Bg7 {[%emt 0:04:19]} 13. Nbxc7 {[%emt 0:01:24]} Rb8 {[%emt 0:02:08]} 14. Nb5 {[%emt 0:00:16]} Re8 {[%emt 0:05:05]} 15. Bd3 {[%emt 0:07:21]} a6 {[%emt 0:03:11]} 16. Nbc3 {[%emt 0:03:00]} Ne5 {[%emt 0:02:17]} 17. Be2 {[%emt 0:02:20]} Be6 {[%emt 0:07:17]} 18. O-O {[%emt 0:03:10]} Rc8 {[%emt 0:00:39]} 19. b3 {[%emt 0:04:20]} Nc6 {[%emt 0:11:54]} 20. Rad1 {[%emt 0:04:30]} Nd4 {[%emt 0:02:36]} 21. Bd3 {[%emt 0:11:05]} Qh4 {[%emt 0:01:42]} 22. Qe3 {[%emt 0:01:38]} Bg4 {[%emt 0:07:02]} 23. Be2 {[%emt 0:04:01]} Bxe2 {[%emt 0:08:16]} 24. Rxd4 {[%emt 0:08:00]} Bxf1 {[%emt 0:02:27]} 25. Rd2 {[%emt 0:00:45]} Bxg2 {[%emt 0:02:07]} 26. Kxg2 {[%emt 0:00:12]} Qg5+ {[%emt 0:01:25]} 27. Qxg5 {[%emt 0:00:12]} hxg5 {[%emt 0:00:06]} 28. a4 {[%emt 0:01:20]} Be5 {[%emt 0:01:44]} 29. Kh3 {[%emt 0:00:38]} Kg7 {[%emt 0:01:00]} 30. Kg4 {[%emt 0:00:14]} Rh8 {[%emt 0:01:09]} 31. f3 {[%emt 0:00:57]} Rh4+ $19 {[%emt 0:02:39]} 32. Kxg5 {[%emt 0:00:10]} Rch8 {[%emt 0:00:13]} 0-1

[Event "FIN-ch Women 2017"]
[Site "Helsinki"]
[Date "2017.06.14"]
[Round "4"]
[White "Norlamo, Sarabella"]
[Black "Al Argha, Fatima"]
[Result "1-0"]
[ECO "D35"]
[WhiteElo "1640"]
[BlackElo "1334"]
[Annotator "NA"]
[PlyCount "41"]
[EventDate "2017.??.??"]
[EventType "tourn"]
[EventCountry "FIN"]
[SourceTitle "playchess.com"]
[Source "ChessBase"]
[SourceQuality "1"]
[TimeControl "40/5400+30:1800+30"]

1. d4 {[%emt 0:00:00]} d5 {[%emt 0:00:30]} 2. c4 {[%emt 0:00:28]} e6 {[%emt 0:00:47]} 3. Nc3 {[%emt 0:01:42]} Nf6 {[%emt 0:01:23]} 4. Nf3 {[%emt 0:04:13]} Nbd7 {[%emt 0:02:14]} 5. cxd5 {[%emt 0:03:19]} exd5 {[%emt 0:01:15]} 6. Bf4 {[%emt 0:06:32]} a6 {[%emt 0:11:01]} 7. h3 {[%emt 0:04:34]} Be7 {[%emt 0:06:22]} 8. e3 {[%emt 0:02:45]} b6 {[%emt 0:01:38]} 9. Rc1 {[%emt 0:04:23]} Bb7 {[%emt 0:05:33]} 10. Bd3 {[%emt 0:19:44]} Ne4 {[%emt 0:19:58]} 11. Bxc7 {[%emt 0:10:10]} Nxc3 {[%emt 0:23:34]} 12. Rxc3 {[%emt 0:02:27]} Qc8 {[%emt 0:00:55]} 13. O-O {[%emt 0:03:19]} O-O {[%emt 0:03:19]} 14. Bxb6 {[%emt 0:03:51]} Bc6 {[%emt 0:04:11]} 15. Qc2 {[%emt 0:04:58]} Nxb6 {[%emt 0:02:27]} 16. Rxc6 {[%emt 0:00:09]} Qb8 {[%emt 0:03:09]} 17. Bxh7+ {[%emt 0:01:24]} Kh8 {[%emt 0:00:25]} 18. Qf5 {[%emt 0:04:19]} Qb7 {[%emt 0:01:09]} 19. Qh5 {[%emt 0:02:19]} Qxc6 {[%emt 0:01:55]} 20. Bg6+ {[%emt 0:00:09]} Kg8 {[%emt 0:00:09]} 21. Qh7# {[%emt 0:00:08]} 1-0